[Event "Polish Youth G16 Championship 2023"]
[Site "Jastrzebia Gora"]
[Date "2023.03.16"]
[Round "6.21"]
[White "Predkiewicz, Paulina"]
[Black "Ekner, Maria"]
[Result "1-0"]
[ECO "C45"]
[WhiteElo "1402"]
[BlackElo "1337"]
[Annotator "NA RC COMBH"]
[PlyCount "57"]
[EventDate "2023.03.11"]
[EventType "swiss"]
[EventCountry "POL"]
[SourceTitle "playchess.com"]
[Source "ChessBase"]
[SourceQuality "1"]
[TimeControl "40/5400+30:1800+30"]

1. e4 {[%emt 0:00:02]} e5 {[%emt 0:00:05]} 2. Nf3 {[%emt 0:00:04]} Nc6 {[%emt 0:00:23]} 3. d4 {[%emt 0:00:06]} exd4 {[%emt 0:00:03]} 4. Nxd4 {[%emt 0:00:07]} Bc5 {[%emt 0:00:32]} 5. Nb3 {[%emt 0:00:11]} Bb6 {[%emt 0:00:25]} 6. Nc3 {[%emt 0:00:07]} Nf6 {[%emt 0:00:59]} 7. Qe2 {[%emt 0:00:16]} d6 {[%emt 0:01:44]} 8. Be3 {[%emt 0:01:34]} O-O {[%emt 0:01:24]} 9. f3 {[%emt 0:05:48]} Be6 {[%emt 0:06:41]} 10. O-O-O {[%emt 0:00:38]} Qe7 {[%emt 0:06:08]} 11. g4 {[%emt 0:04:43]} Bxe3+ {[%emt 0:02:43]} 12. Qxe3 {[%emt 0:00:10]} h6 {[%emt 0:00:47]} 13. h4 {[%emt 0:02:02]} Nh7 {[%emt 0:01:57]} 14. Be2 {[%emt 0:03:08]} Ne5 {[%emt 0:02:57]} 15. Rdg1 {[%emt 0:03:22]} Nc4 {[%emt 0:05:38]} 16. Qf2 {[%emt 0:06:55]} a5 {[%emt 0:04:16]} 17. a4 {[%emt 0:34:40]} f6 {[%emt 0:04:31]} 18. f4 {[%emt 0:00:45]} Nb6 {[%emt 0:09:42]} 19. Qh2 {[%emt 0:02:01]} Bc4 {[%emt 0:08:03]} 20. Bxc4+ {[%emt 0:01:11]} Nxc4 {[%emt 0:00:10]} 21. g5 {[%emt 0:00:29]} c5 {[%emt 0:03:19]} 22. g6 {[%emt 0:00:38]} f5 {[%emt 0:02:28]} 23. gxh7+ {[%emt 0:00:08]} Kxh7 {[%emt 0:00:07]} 24. exf5 {[%emt 0:09:28]} Qe3+ {[%emt 0:00:52]} 25. Kb1 {[%emt 0:00:25]} Rxf5 {[%emt 0:01:20]} 26. Qg2 {[%emt 0:00:40]} Na3+ {[%emt 0:02:32]} 27. bxa3 {[%emt 0:00:16]} Qxc3 {[%emt 0:00:06]} 28. Qg6+ {[%emt 0:00:06]} Kh8 {[%emt 0:00:10]} 29. Qxf5 {[%emt 0:00:09]} 1-0

[Event "Polish Youth G16 Championship 2023"]
[Site "Jastrzebia Gora"]
[Date "2023.03.16"]
[Round "6.22"]
[White "Idzior, Izabela"]
[Black "Racis, Dominika"]
[Result "1-0"]
[ECO "B18"]
[WhiteElo "1287"]
[BlackElo "1201"]
[Annotator "NA RC COMBH"]
[PlyCount "73"]
[EventDate "2023.03.11"]
[EventType "swiss"]
[EventCountry "POL"]
[SourceTitle "playchess.com"]
[Source "ChessBase"]
[SourceQuality "1"]
[TimeControl "40/5400+30:1800+30"]

1. e4 {[%emt 0:02:18]} c6 {[%emt 0:00:04]} 2. d4 {[%emt 0:00:06]} d5 {[%emt 0:00:09]} 3. Nc3 {[%emt 0:00:03]} dxe4 {[%emt 0:00:13]} 4. Nxe4 {[%emt 0:00:05]} Bf5 {[%emt 0:00:25]} 5. Ng3 {[%emt 0:00:12]} Bg6 {[%emt 0:00:11]} 6. Nh3 {[%emt 0:00:24]} Nf6 {[%emt 0:00:15]} 7. c3 {[%emt 0:01:13]} Nbd7 {[%emt 0:02:11]} 8. Nf4 {[%emt 0:02:29]} e6 {[%emt 0:03:26]} 9. Bc4 {[%emt 0:02:58]} Nd5 {[%emt 0:07:19]} 10. Nxg6 {[%emt 0:06:34]} hxg6 {[%emt 0:00:14]} 11. Bxd5 {[%emt 0:01:50]} cxd5 {[%emt 0:01:14]} 12. Bf4 {[%emt 0:00:31]} Nb6 {[%emt 0:02:56]} 13. Qf3 {[%emt 0:10:42]} g5 {[%emt 0:04:01]} 14. Bc1 {[%emt 0:07:41]} Rh4 {[%emt 0:18:12]} 15. Nf1 {[%emt 0:05:34]} Re4+ {[%emt 0:02:47]} 16. Be3 {[%emt 0:01:18]} Nc4 {[%emt 0:03:21]} 17. b3 {[%emt 0:01:57]} Qa5 {[%emt 0:02:27]} 18. Rc1 {[%emt 0:13:34]} Nxe3 {[%emt 0:05:19]} 19. fxe3 {[%emt 0:01:42]} Qxa2 {[%emt 0:11:28]} 20. Nd2 {[%emt 0:06:56]} Rh4 {[%emt 0:00:53]} 21. O-O {[%emt 0:00:23]} f6 {[%emt 0:05:08]} 22. Qe2 {[%emt 0:05:23]} Qa5 {[%emt 0:01:05]} 23. e4 {[%emt 0:03:29]} Kf7 {[%emt 0:05:00]} 24. Nf3 {[%emt 0:04:44]} Rh6 {[%emt 0:04:46]} 25. Nxg5+ {[%emt 0:02:23]} Ke7 {[%emt 0:00:47]} 26. Nh3 {[%emt 0:03:55]} Rh4 {[%emt 0:02:28]} 27. Nf4 {[%emt 0:01:14]} Kd8 {[%emt 0:03:21]} 28. g3 {[%emt 0:02:45]} Rh6 {[%emt 0:02:06]} 29. Nxe6+ {[%emt 0:00:13]} Kd7 {[%emt 0:00:03]} 30. Qg4 {[%emt 0:00:18]} Kc6 {[%emt 0:00:28]} 31. c4 {[%emt 0:03:19]} Qa2 {[%emt 0:00:48]} 32. cxd5+ {[%emt 0:01:35]} Kb5 {[%emt 0:01:31]} 33. Nc7+ {[%emt 0:00:40]} Kb4 {[%emt 0:00:04]} 34. Rf2 {[%emt 0:01:04]} Qxb3 {[%emt 0:00:16]} 35. Qe2 {[%emt 0:00:25]} Rc8 {[%emt 0:00:49]} 36. Rf3 {[%emt 0:00:15]} Qa4 {[%emt 0:00:51]} 37. Rc4+ {[%emt 0:01:00]} 1-0

[Event "Polish Youth G16 Championship 2023"]
[Site "Jastrzebia Gora"]
[Date "2023.03.16"]
[Round "6.23"]
[White "Danek, Wiktoria"]
[Black "Lach, Alicja"]
[Result "0-1"]
[ECO "A57"]
[WhiteElo "1161"]
[BlackElo "1231"]
[Annotator "NA RC COMBH"]
[PlyCount "112"]
[EventDate "2023.03.11"]
[EventType "swiss"]
[EventCountry "POL"]
[SourceTitle "playchess.com"]
[Source "ChessBase"]
[SourceQuality "1"]
[TimeControl "40/5400+30:1800+30"]

1. d4 Nf6 2. c4 c5 3. d5 b5 4. b3 g6 5. Bb2 Bg7 6. Nf3 bxc4 7. bxc4 d6 8. e3 O-O 9. Bd3 Nbd7 10. Nbd2 Qa5 11. O-O Rb8 12. Nb3 Qc7 13. Qc2 Ng4 14. Bxg7 Kxg7 15. h3 Nge5 16. Nbd2 Ba6 17. Nxe5 Nxe5 18. Qc3 Kg8 19. Rab1 Rb6 20. f4 Nd7 21. e4 Rfb8 22. Rxb6 Rxb6 23. Nf3 Nf6 24. e5 Nh5 25. Nh4 dxe5 26. fxe5 f6 27. exf6 Rxf6 28. Rxf6 exf6 29. Nf3 Qg3 30. Qe1 Qxe1+ 31. Nxe1 Nf4 32. Bf1 g5 33. Nd3 Bxc4 34. Nxf4 Bxf1 35. Kxf1 gxf4 36. Ke2 Kf7 37. Kd3 Ke7 38. Kc3 Kd6 39. Kc4 a6 40. a3 h6 41. a4 h5 42. h4 f5 43. a5 f3 44. gxf3 f4 45. Kc3 Kxd5 46. Kd3 c4+ 47. Kc3 Kc5 48. Kc2 Kb4 49. Kb2 Kxa5 50. Kc3 Kb5 51. Kc2 Kb4 52. Kb2 c3+ 53. Kc2 Kc4 54. Kc1 Kd3 55. Kd1 c2+ 56. Kc1 a5 0-1

[Event "Polish Youth G16 Championship 2023"]
[Site "Jastrzebia Gora"]
[Date "2023.03.17"]
[Round "7.1"]
[White "Szczotka, Klara"]
[Black "Siekanska, Maria"]
[Result "1-0"]
[ECO "B90"]
[WhiteElo "1739"]
[BlackElo "1996"]
[Annotator "TA"]
[PlyCount "67"]
[EventDate "2023.03.11"]
[EventType "swiss"]
[EventCountry "POL"]
[SourceTitle "playchess.com"]
[Source "ChessBase"]
[SourceQuality "1"]
[TimeControl "40/5400+30:1800+30"]

{[%evp 15,67,16,0,2,0,10,22,0,21,6,23,21,18,22,64,63,72,53,54,69,113,116,100,125,183,89,110,79,88,73,313,322,419,412,420,176,176,157,202,202,214,196,715,716,693,686,640,343,747,534,711,577,496,484]} 1. e4 {[%emt 0:00:01]} c5 {[%emt 0:00:05]} 2. Nf3 {[%emt 0:00:04]} d6 {[%emt 0:00:05]} 3. d4 {[%emt 0:00:03]} cxd4 {[%emt 0:00:06]} 4. Nxd4 {[%emt 0:00:03]} Nf6 {[%emt 0:00:06]} 5. Nc3 {[%emt 0:00:03]} a6 {[%emt 0:00:06]} 6. Be3 {[%emt 0:00:09]} e6 {[%emt 0:00:50]} 7. f3 {[%emt 0:00:14]} b5 {[%emt 0:00:50]} 8. a3 {[%emt 0:00:18]} Bb7 {[%emt 0:00:38]} 9. Qd2 {[%emt 0:00:34] B80: Sicilian Scheveningen: 6 g3 and 6 Be3, including English Attack.} Nbd7 {[%emt 0:00:28]} 10. g4 {[%emt 0:00:54]} Nb6 {[%emt 0:00:15]} 11. O-O-O {[%emt 0:01:30] The position is equal.} Rc8 {[%emt 0:01:07]} 12. h4 {[%emt 0:00:50]} Nfd7 {[%emt 0:00:47][%cal Bf6d7,Bd7e5,Be5c4][%mdl 32]} 13. Rh3 {[%emt 0:00:35]} Be7 {[%emt 0:04:24]} 14. g5 {[%emt 0:06:32]} Ne5 {[%emt 0:02:56]} 15. Qe1 {[%emt 0:00:44]} Nec4 {[%emt 0:03:15]} 16. Bg1 {[%emt 0:03:37]} Qc7 {[%emt 0:02:08][%cal Oc4b2]} 17. f4 {[%emt 0:11:09][%cal Bf3f4,Bf4f5,Bf5f6][%mdl 32] [#]} b4 $146 ({Predecessor:} 17... d5 18. Bxc4 Nxc4 19. exd5 Bxd5 20. f5 Bb7 21. fxe6 O-O 22. Bh2 Qa5 23. Nd5 Bxd5 24. Nf5 Bc5 25. e7 Rfe8 26. Qxa5 Nxa5 {½-½ Fass,R (2314)-Rodriguez,K (2406) USA-ch19 sf08 email 2010}) 18. axb4 {[%emt 0:07:11] aiming for b3.} d5 {[%emt 0:31:57]} 19. exd5 {[%emt 0:13:13]} Nxd5 {[%emt 0:01:41]} (19... Bxb4 $16 20. f5 (20. dxe6 O-O $16) 20... Bxd5) 20. Nxd5 {[%emt 0:06:21]} (20. Bh2 $18) 20... Bxd5 $16 {[%emt 0:00:21]} 21. Bxc4 {[%emt 0:00:50]} (21. b3 {with more complications.} Na3 22. c4 Nxc4 23. bxc4 Bxc4 24. Bxc4 Qxc4+ 25. Kb1) 21... Bxc4 {[%emt 0:00:55]} 22. f5 {[%emt 0:04:56] And now f6 would win.} e5 $2 {[%emt 0:02:58] [#] A mistake that costs the game.} (22... O-O $16) 23. f6 $1 $18 {[%emt 0:08:54][%mdl 512]} gxf6 {[%emt 0:09:42]} (23... exd4 24. Rxd4) 24. gxf6 {[%emt 0:00:10] Threatens to win with Nf5.} exd4 {[%emt 0:05:11]} 25. Qxe7+ {[%emt 0:02:05]} ({Less strong is} 25. fxe7 Be6 26. Rh2 Rg8 $16) (25. Rxd4 $142 Bd3 26. Rh2 (26. Rdxd3 $2 Qxc2#) (26. Qxe7+ Qxe7 27. fxe7 Bf5 $18)) 25... Qxe7 {[%emt 0:00:02]} 26. fxe7 {[%emt 0:00:01]} Kxe7 {[%emt 0:04:36]} 27. Bxd4 {[%emt 0:00:16]} Rhg8 {[%emt 0:01:02]} 28. Bc5+ {[%emt 0:01:48]} Kf6 $2 {[%emt 0:01:21]} (28... Ke8 29. Rc3 (29. Re3+ Be6 $18) 29... Be6) 29. Rf3+ {[%emt 0:02:23]} Ke5 {[%emt 0:03:34]} 30. Re1+ {[%emt 0:01:07]} Kd5 {[%emt 0:00:14]} 31. Rxf7 {[%emt 0:00:57]} Rg6 $2 {[%emt 0:01:51]} (31... Rce8 32. Rd1+ Ke5) 32. Rxh7 {[%emt 0:01:50] White is clearly winning.} a5 {[%emt 0:00:06]} 33. Rh5+ {[%emt 0:00:38]} Kc6 {[%emt 0:00:05]} 34. bxa5 {[%emt 0:00:59] Weighted Error Value: White=0.54/Black=0.46} 1-0

[Event "Polish Youth G16 Championship 2023"]
[Site "Jastrzebia Gora"]
[Date "2023.03.17"]
[Round "7.2"]
[White "Bar, Klaudia"]
[Black "Tokarz, Izabela"]
[Result "1/2-1/2"]
[ECO "B42"]
[WhiteElo "1731"]
[BlackElo "1725"]
[Annotator "NA RC COMBH"]
[PlyCount "116"]
[EventDate "2023.03.11"]
[EventType "swiss"]
[EventCountry "POL"]
[SourceTitle "playchess.com"]
[Source "ChessBase"]
[SourceQuality "1"]
[TimeControl "40/5400+30:1800+30"]

1. e4 {[%emt 0:00:02]} c5 {[%emt 0:00:05]} 2. Nf3 {[%emt 0:00:04]} e6 {[%emt 0:00:15]} 3. d4 {[%emt 0:00:05]} cxd4 {[%emt 0:00:04]} 4. Nxd4 {[%emt 0:00:07]} a6 {[%emt 0:00:05]} 5. Bd3 {[%emt 0:00:25]} Bc5 {[%emt 0:00:58]} 6. Nb3 {[%emt 0:02:02]} Ba7 {[%emt 0:03:32]} 7. O-O {[%emt 0:02:12]} Nc6 {[%emt 0:02:14]} 8. Nc3 {[%emt 0:04:31]} Nf6 {[%emt 0:03:40]} 9. Qe2 {[%emt 0:02:59]} d6 {[%emt 0:03:58]} 10. Bd2 {[%emt 0:01:25]} O-O {[%emt 0:00:45]} 11. Kh1 {[%emt 0:01:25]} e5 {[%emt 0:10:58]} 12. f4 {[%emt 0:05:59]} Ng4 {[%emt 0:05:56]} 13. h3 {[%emt 0:17:23]} exf4 {[%emt 0:33:13]} 14. Rxf4 {[%emt 0:02:41]} Nge5 {[%emt 0:02:02]} 15. Nd5 {[%emt 0:05:45]} Ng6 {[%emt 0:08:13]} 16. Rf3 {[%emt 0:08:23]} Nce5 {[%emt 0:00:05]} 17. Rg3 {[%emt 0:01:16]} Be6 {[%emt 0:01:56]} 18. Rf1 {[%emt 0:05:02]} Bxd5 {[%emt 0:05:55]} 19. exd5 {[%emt 0:00:01]} Re8 {[%emt 0:00:10]} 20. Qh5 {[%emt 0:06:15]} Nxd3 {[%emt 0:05:31]} 21. Rxd3 {[%emt 0:00:58]} Qd7 {[%emt 0:03:15]} 22. Bc3 {[%emt 0:02:29]} Re4 {[%emt 0:01:39]} 23. Rdf3 {[%emt 0:04:28]} Rf8 {[%emt 0:02:41]} 24. Qf5 {[%emt 0:07:17]} Qxf5 {[%emt 0:00:50]} 25. Rxf5 {[%emt 0:00:01]} f6 {[%emt 0:00:16]} 26. Na5 {[%emt 0:06:13]} Ne7 {[%emt 0:01:02]} 27. R5f3 {[%emt 0:11:14]} b6 {[%emt 0:00:42]} 28. Nb7 {[%emt 0:01:09]} Nxd5 {[%emt 0:00:06]} 29. Nxd6 {[%emt 0:00:15]} Re2 {[%emt 0:01:22]} 30. Rg3 {[%emt 0:02:41]} Bb8 {[%emt 0:01:10]} 31. Rd3 {[%emt 0:00:36]} Nxc3 {[%emt 0:01:16]} 32. bxc3 {[%emt 0:00:13]} Rxc2 {[%emt 0:01:22]} 33. Nf5 {[%emt 0:00:42]} g6 {[%emt 0:00:04]} 34. Ne7+ {[%emt 0:00:12]} Kg7 {[%emt 0:00:23]} 35. a4 {[%emt 0:00:51]} Be5 {[%emt 0:00:42]} 36. Nd5 {[%emt 0:00:36]} b5 {[%emt 0:00:21]} 37. axb5 {[%emt 0:00:13]} axb5 {[%emt 0:00:03]} 38. Rfd1 {[%emt 0:00:41]} Rf7 {[%emt 0:00:38]} 39. Kg1 {[%emt 0:00:33]} Ra7 {[%emt 0:00:27]} 40. R1d2 {[%emt 0:00:00]} Ra1+ {[%emt 0:00:00]} 41. Kf2 {[%emt 0:00:47]} Rxd2+ {[%emt 0:10:49]} 42. Rxd2 {[%emt 0:00:02]} Rc1 {[%emt 0:00:11]} 43. Rb2 {[%emt 0:00:48]} Bxc3 {[%emt 0:01:25]} 44. Nxc3 {[%emt 0:00:08]} Rxc3 {[%emt 0:00:03]} 45. Rxb5 {[%emt 0:00:11]} g5 {[%emt 0:02:06]} 46. Rb7+ {[%emt 0:02:23]} Kg6 {[%emt 0:00:14]} 47. Rb8 {[%emt 0:02:29]} h5 {[%emt 0:01:11]} 48. Rg8+ {[%emt 0:00:24]} Kf5 {[%emt 0:00:05]} 49. Rb8 {[%emt 0:00:57]} h4 {[%emt 0:01:21]} 50. Rb5+ {[%emt 0:00:26]} Kg6 {[%emt 0:00:48]} 51. Rb6 {[%emt 0:00:24]} Rc4 {[%emt 0:00:51]} 52. Kf3 {[%emt 0:00:53]} Rf4+ {[%emt 0:00:34]} 53. Ke3 {[%emt 0:00:45]} Rf5 {[%emt 0:02:04]} 54. Ra6 {[%emt 0:04:50]} Re5+ {[%emt 0:00:09]} 55. Kf3 {[%emt 0:00:23]} Kf5 {[%emt 0:00:13]} 56. Rb6 {[%emt 0:01:16]} Rc5 {[%emt 0:00:16]} 57. Rb3 {[%emt 0:00:22]} Ke5 {[%emt 0:01:06]} 58. Re3+ {[%emt 0:01:52]} Kf5 {[%emt 0:00:09]} 1/2-1/2

[Event "Polish Youth G16 Championship 2023"]
[Site "Jastrzebia Gora"]
[Date "2023.03.17"]
[Round "7.3"]
[White "Ziobrowska, Maja"]
[Black "Pawicka, Magdalena"]
[Result "1/2-1/2"]
[ECO "C73"]
[WhiteElo "1758"]
[BlackElo "1805"]
[Annotator "NA RC COMBH"]
[PlyCount "120"]
[EventDate "2023.03.11"]
[EventType "swiss"]
[EventCountry "POL"]
[SourceTitle "playchess.com"]
[Source "ChessBase"]
[SourceQuality "1"]
[TimeControl "40/5400+30:1800+30"]

1. e4 {[%emt 0:00:03]} e5 {[%emt 0:01:28]} 2. Nf3 {[%emt 0:00:06]} Nc6 {[%emt 0:00:18]} 3. Bb5 {[%emt 0:00:03]} a6 {[%emt 0:00:27]} 4. Ba4 {[%emt 0:00:04]} d6 {[%emt 0:00:12]} 5. Bxc6+ {[%emt 0:01:51]} bxc6 {[%emt 0:00:07]} 6. d4 {[%emt 0:00:04]} f6 {[%emt 0:01:49]} 7. Nc3 {[%emt 0:02:53]} Ne7 {[%emt 0:08:33] 7...Ne7 scores better than 7...g6.} 8. Be3 {[%emt 0:09:07]} Ng6 {[%emt 0:04:01]} 9. O-O {[%emt 0:07:38]} Be7 {[%emt 0:04:32]} 10. Qd3 {[%emt 0:06:16]} Be6 {[%emt 0:04:26]} 11. d5 {[%emt 0:14:53]} cxd5 {[%emt 0:04:56]} 12. Nxd5 {[%emt 0:00:11] [#]} O-O $146 {[%emt 0:04:07]} ({Predecessor:} 12... Qd7 13. Rfd1 O-O 14. c4 Bg4 15. Nd2 Bxd1 16. Rxd1 Rab8 17. b3 Bd8 18. c5 Nh4 {0-1 Littlewood,J-Sliwa,B Christmas Congress 1960/61-36 Premier (4)}) 13. h4 {[%emt 0:05:04]} f5 {[%emt 0:09:30]} 14. Bg5 {[%emt 0:03:15]} h6 {[%emt 0:07:11]} 15. exf5 {[%emt 0:14:49]} (15. Nxe5 $1 $11 {remains equal.} fxe4 16. Qd1 Bxg5 17. Nxg6) 15... Bxf5 {[%emt 0:06:55]} 16. Qc4 {[%emt 0:05:00]} Kh8 {[%emt 0:02:25]} 17. Bxe7 {[%emt 0:04:19]} Nxe7 {[%emt 0:00:23]} 18. Ne3 {[%emt 0:01:46]} Bh7 {[%emt 0:05:38]} 19. Rad1 {[%emt 0:01:21]} Qc8 {[%emt 0:08:51]} 20. Qe2 {[%emt 0:08:10]} Qb7 {[%emt 0:01:57]} 21. c4 {[%emt 0:02:51]} Ng6 {[%emt 0:04:39]} 22. Nd5 {[%emt 0:03:04]} Nf4 {[%emt 0:01:22]} 23. Nxf4 {[%emt 0:03:42]} Rxf4 {[%emt 0:00:09]} 24. c5 {[%emt 0:00:56]} e4 {[%emt 0:06:17]} 25. Qe3 {[%emt 0:01:07]} Raf8 {[%emt 0:01:55]} (25... Rf5 $17 26. Nd4 Rxc5) 26. Nd4 {[%emt 0:01:09]} Rxh4 {[%emt 0:00:22]} 27. Ne6 {[%emt 0:01:21]} Rg8 {[%emt 0:01:35]} 28. cxd6 {[%emt 0:00:27]} cxd6 {[%emt 0:00:05]} 29. Rxd6 {[%emt 0:01:33]} Qxb2 {[%emt 0:00:28]} 30. Rxa6 {[%emt 0:01:25]} Qb5 {[%emt 0:03:30]} 31. Ra3 {[%emt 0:00:55]} Qh5 {[%emt 0:01:08]} 32. f3 {[%emt 0:00:21]} Re8 {[%emt 0:02:45]} 33. Nf4 {[%emt 0:00:24]} Qg5 {[%emt 0:02:25]} 34. Nh3 {[%emt 0:00:35]} Qg6 {[%emt 0:01:58]} 35. f4 {[%emt 0:00:12]} Rg4 {[%emt 0:00:22]} 36. Rf2 {[%emt 0:00:10]} Rd8 {[%emt 0:00:51]} 37. Kh2 {[%emt 0:00:19]} Qd6 {[%emt 0:00:39]} 38. Rc3 {[%emt 0:00:36]} Qd5 {[%emt 0:00:37]} 39. a3 {[%emt 0:00:29]} Qd1 {[%emt 0:00:29]} 40. Rc1 {[%emt 0:00:00]} Qd3 {[%emt 0:00:00]} 41. Qxd3 {[%emt 0:05:49]} exd3 {[%emt 0:00:52]} 42. Rd2 {[%emt 0:03:49]} Rg6 {[%emt 0:00:57]} 43. Nf2 {[%emt 0:05:25]} Ra6 {[%emt 0:01:19]} 44. Rc3 {[%emt 0:03:54]} Rda8 {[%emt 0:04:46]} 45. Ra2 {[%emt 0:02:24]} (45. Nxd3 $2 {is the wrong capture.} Rd6 46. g4 Be4 $19) 45... Rd8 {[%emt 0:00:48]} (45... Rd6 $15 46. Rd2 Rd4) 46. Rd2 {[%emt 0:00:45]} Re6 {[%emt 0:02:10]} 47. a4 {[%emt 0:09:33]} (47. Nxd3 $2 {loses.} Red6 48. a4 Bxd3 $19) 47... Ra6 $11 {[%emt 0:05:38]} 48. Ra3 {[%emt 0:00:50]} Rd4 {[%emt 0:00:32]} 49. Kg3 {[%emt 0:01:44]} Raxa4 {[%emt 0:00:18]} 50. Rxa4 {[%emt 0:00:10]} Rxa4 {[%emt 0:00:03]} 51. Kf3 {[%emt 0:00:09]} g5 {[%emt 0:05:47]} 52. fxg5 {[%emt 0:01:00]} hxg5 {[%emt 0:00:04]} 53. g3 {[%emt 0:00:54]} Kg7 {[%emt 0:00:54]} 54. Ke3 {[%emt 0:00:46]} Kf6 {[%emt 0:00:57]} 55. Nxd3 {[%emt 0:00:56]} Ra3 {[%emt 0:01:09]} 56. Kd4 {[%emt 0:00:39]} Rxd3+ {[%emt 0:00:31]} 57. Rxd3 {[%emt 0:00:11]} Bxd3 {[%emt 0:00:04]} 58. Kxd3 {[%emt 0:00:37]} Kf5 {[%emt 0:00:23]} 59. Ke3 {[%emt 0:00:20]} Kg4 {[%emt 0:00:16]} 60. Kf2 {[%emt 0:00:12]} Kf5 {[%emt 0:00:13]} 1/2-1/2

[Event "Polish Youth G16 Championship 2023"]
[Site "Jastrzebia Gora"]
[Date "2023.03.17"]
[Round "7.4"]
[White "Pastuszko, Katarzyna"]
[Black "Smietanska, Wiktoria"]
[Result "0-1"]
[ECO "B53"]
[WhiteElo "1286"]
[BlackElo "1954"]
[Annotator "TA"]
[PlyCount "106"]
[EventDate "2023.03.11"]
[EventType "swiss"]
[EventCountry "POL"]
[SourceTitle "playchess.com"]
[Source "ChessBase"]
[SourceQuality "1"]
[TimeControl "40/5400+30:1800+30"]

{[%evp 15,106,-4,27,18,48,41,44,33,52,28,60,50,62,66,92,-25,13,-104,-103,-129,-95,-145,-148,-150,-141,-175,-100,-118,-45,-52,-55,-92,-62,-88,-22,-22,-22,-40,28,-20,-47,-320,-293,-551,-251,-254,-250,-269,-263,-263,-257,-248,-230,-207,-195,-936,-907,-831,-592,-8714,-5820,-8720,-6613,-8714,-8637,-2260,-2569,-29957,-29959,-29954,-29952,-29959,-29964,-29950,-29959,-29970,-29971,-29967,-29964,-29977,-29980,-29980,-29981,-29981,-29982,-29982,-29983,-29984,-29984,-29986,-29987,-29989,-29990]} 1. e4 {[%emt 0:00:06]} c5 {[%emt 0:00:05]} 2. Nf3 {[%emt 0:00:09]} d6 {[%emt 0:00:09]} 3. d4 {[%emt 0:00:08]} cxd4 {[%emt 0:00:06]} 4. Qxd4 {[%emt 0:00:08]} Nf6 {[%emt 0:01:03]} 5. Nc3 {[%emt 0:00:49]} Nc6 {[%emt 0:01:05]} 6. Bb5 Bd7 {[%emt 0:04:30]} 7. Bxc6 {[%emt 0:01:27]} Bxc6 {[%emt 0:00:33]} 8. Bg5 {[%emt 0:01:06]} Nd7 {[%emt 0:04:22]} 9. O-O-O {[%emt 0:02:42] B53: Sicilian: 2...d6: Lines with Qxd4.} Qa5 {[%emt 0:07:47]} 10. Kb1 {[%emt 0:03:21]} Rc8 {[%emt 0:12:17]} 11. Rhe1 {[%emt 0:09:15] White is slightly better.} e6 {[%emt 0:04:44]} 12. h4 {[%emt 0:04:30] [#]} b5 $146 {[%emt 0:04:16]} ({Predecessor:} 12... h6 13. Be3 a6 14. Nd2 b5 15. Nb3 Qc7 16. f4 Ba8 17. g4 Qc4 18. Na5 Qxd4 19. Bxd4 {0-1 Skliarov,V (2384)-Bacrot,E (2647) Titled Tuesday intern op 13th Sep Early blitz 2022 (3)}) 13. h5 {[%emt 0:12:14] aiming for h6.} h6 {[%emt 0:10:12]} 14. Bh4 {[%emt 0:01:36]} b4 {[%emt 0:00:46]} 15. Ne2 {[%emt 0:01:12]} (15. Nd5 $1 $16) 15... Qxh5 {[%emt 0:03:52]} 16. Nf4 {[%emt 0:07:20]} (16. Qxb4 $11 Qc5 17. Qxc5 Nxc5 18. Nc3) 16... Qc5 $17 {[%emt 0:02:58] Threatens to win with ...Qxd4.} 17. Qd2 {[%emt 0:03:41]} a5 {[%emt 0:04:44]} 18. Nd3 {[%emt 0:05:02]} (18. Nd4 $142) 18... Qb6 {[%emt 0:07:02]} 19. Nh2 {[%emt 0:05:03]} Ba4 {[%emt 0:03:04]} 20. Rc1 {[%emt 0:06:10]} Nc5 {[%emt 0:04:20]} ({Black should play} 20... g5 $19 21. Bg3 Bg7) 21. f4 {[%emt 0:02:31]} Qc6 {[%emt 0:02:52]} ({Better is} 21... Nxd3 $17 22. cxd3 Rxc1+ 23. Rxc1 Qa6) 22. Nxc5 $15 {[%emt 0:05:13]} Qxc5 {[%emt 0:06:55]} 23. e5 {[%emt 0:03:25][%cal Of4f5]} d5 {[%emt 0:02:48]} (23... Be7 {looks sharper.} 24. Bxe7 Kxe7 25. Ng4 Rhd8) 24. g4 {[%emt 0:02:33]} Be7 {[%emt 0:01:00]} (24... Bd7 $17 25. Bf2 Qc4) 25. Bxe7 $11 {[%emt 0:01:36]} Qxe7 {[%emt 0:00:36]} 26. f5 {[%emt 0:02:29]} Qc5 {[%emt 0:03:48]} (26... Bd7 $15 27. f6 gxf6) 27. fxe6 {[%emt 0:02:22]} (27. Nf3 {was preferrable.}) 27... fxe6 {[%emt 0:00:05] ...0-0 would be deadly.} 28. Qd3 $2 {[%emt 0:00:37][%mdl 8192] [#] Loses the game.} (28. Nf3 $15) 28... O-O $1 $19 {[%emt 0:03:33] Strongly threatening ...Rf2.} 29. g5 $2 {[%emt 0:02:55] [#]} (29. Rf1 {might work better.}) 29... Bxc2+ {[%emt 0:01:55]} 30. Qxc2 {[%emt 0:01:20]} Qxc2+ {[%emt 0:00:06][%mdl 64] Remove Defender} 31. Rxc2 {[%emt 0:00:14]} Rxc2 {[%emt 0:00:04][%mdl 64] Remove Defender} ({Much less strong is} 31... hxg5 32. Rxc8 Rxc8 33. Nf3 $18) 32. Kxc2 {[%emt 0:00:05][%mdl 4096] Endgame And now Rf1 would win. KRN-KR} Rf2+ {[%emt 0:00:03]} ({Not} 32... hxg5 33. Kd2 $11) 33. Kb3 {[%emt 0:00:53]} Rxh2 {[%emt 0:00:05]} 34. gxh6 {[%emt 0:00:42]} gxh6 {[%emt 0:00:32] White must now prevent ...h5. KR-KR} ({Worse is} 34... Rxh6 35. Ka4 $17) 35. Ka4 $2 {[%emt 0:01:32]} (35. Rb1) 35... Rxb2 {[%emt 0:00:07]} 36. Kxa5 {[%emt 0:00:13]} Kh7 {[%emt 0:00:21]} 37. Rf1 {[%emt 0:04:54]} Rxa2+ {[%emt 0:03:42]} 38. Kxb4 {[%emt 0:00:09]} Re2 {[%emt 0:00:45]} 39. Rf7+ {[%emt 0:00:17]} Kg8 {[%emt 0:00:33]} 40. Rf6 {[%emt 0:00:00]} Rxe5 {[%emt 0:00:00]} 41. Rxh6 {[%emt 0:00:42]} Kg7 {[%emt 0:00:34] Black mates.} 42. Rh1 {[%emt 0:00:31]} d4 {[%emt 0:05:15]} 43. Rd1 {[%emt 0:04:58]} Re4 {[%emt 0:02:47]} 44. Kc4 {[%emt 0:01:11]} e5 {[%emt 0:00:07]} 45. Kd5 {[%emt 0:01:04]} Re3 {[%emt 0:00:08]} 46. Kc4 {[%emt 0:01:19]} Kf6 {[%emt 0:00:12]} 47. Rd2 {[%emt 0:05:12]} Ke6 {[%emt 0:00:16]} 48. Rd1 {[%emt 0:02:42]} Rc3+ {[%emt 0:00:04]} 49. Kb4 {[%emt 0:00:10]} Kd5 {[%emt 0:00:18]} 50. Re1 {[%emt 0:00:33]} Rc8 {[%emt 0:00:25]} 51. Re2 {[%emt 0:01:01]} Rb8+ {[%emt 0:00:09]} 52. Ka3 {[%emt 0:00:11]} d3 {[%emt 0:00:04]} 53. Rd2 {[%emt 0:00:09]} Kc4 {[%emt 0:00:05] Weighted Error Value: White=0.95/Black=0.36} 0-1